Cogmind - Beta 16 @@@ ROGUE MODE // 2025.12.18 @ 03:57:45 Player: War__Prophet Result: Destroyed by S-10 Pest with Light Assault Rifle Performance ------------- Evolutions (2) 1000 Regions Visited (3) 600 Robots Destroyed (41) 205 Value Destroyed (865) 865 Prototype IDs (1) 20 Alien Tech Used (0) 0 Bonus (0) 0 TOTAL SCORE: 2690 Bonus ------- None Cogmind --------- Core Integrity 0/550 Matter 221/300 Energy 100/100 System Corruption 0% Temperature Cool (0) Movement Core (750) Ox14 Location -8/Materials Parts ------- > --- POWER (2) -------- (None) > --- PROPULSION (4) --- (None) > --- UTILITY (3) ------ High-capacity Storage Unit > --- WEAPON (2) ------- Heavy Assault Rifle > --- INVENTORY (20) --- Ion Engine Ion Engine Ion Engine Flight Unit Flight Unit Flight Unit Flight Unit Flight Unit Flight Unit Flight Unit Flight Unit Flight Unit Cesium-ion Thruster Peak State ------------ > --- POWER ------------ Improved Ion Engine > --- PROPULSION ------- Wheel Wheel Wheel Cesium-ion Thruster > --- UTILITY ---------- High-capacity Storage Unit > --- WEAPON ----------- Heavy Assault Rifle Improved Assault Rifle > --- INVENTORY -------- Ion Engine Ion Engine Ion Engine Flight Unit Flight Unit Flight Unit Flight Unit Flight Unit Flight Unit Flight Unit Flight Unit Flight Unit [Rating: 15] Favorites ----------- Power Ion Engine Engine Ion Engine Propulsion Compact Wheel Treads Light Treads Wheel Compact Wheel Flight Unit Cesium-ion Thruster Utility Small Storage Unit Device Shield Generator Storage Small Storage Unit Protection Light Armor Plating Weapon Light Assault Rifle Ballistic Gun Light Assault Rifle Build | -11 -10 -9 -8 ------- Run | Yrd Mat Mat Mat Slots Evolved 4 | . . 2 2 Power 1 | . . . 1 Propulsion 2 | . . 1 1 Utility 1 | . . 1 . Weapon . | . . . . Parts Attached 26 | 6 3 14 3 Power 3 | 1 . 2 . Engine 3 | 1 . 2 . Core . | . . . . Reactor . | . . . . Propulsion 9 | 2 . 5 2 Treads 2 | . . 2 . Leg . | . . . . Wheel 6 | 2 . 3 1 Hover . | . . . . Flight 1 | . . . 1 Utility 6 | 1 2 3 . Device 1 | . . 1 . Storage 2 | 1 . 1 . Processor . | . . . . Hackware . | . . . . Protection 3 | . 2 1 . Artifact . | . . . . Weapon 8 | 2 1 4 1 Energy Gun . | . . . . Energy Cannon . | . . . . Ballistic Gun 8 | 2 1 4 1 Ballistic Cannon . | . . . . Launcher . | . . . . Special Weapon . | . . . . Impact Weapon . | . . . . Slashing Weapon . | . . . . Piercing Weapon . | . . . . Special Melee Weapon . | . . . . Unidentified Prototypes 1 | . . 1 . Parts Lost 14 | . . 7 7 Power 3 | . . 2 1 Propulsion 5 | . . 1 4 Utility 2 | . . 2 . Weapon 4 | . . 2 2 Highest Loss Streak 6 | . . 3 6 To Critical Strikes . | . . . . Average Backups 8 | . 6 9 12 Power 1 | . 1 2 3 Propulsion 6 | . 4 7 9 Utility . | . 1 . . Weapon . | . . . . Tool/Special . | . . . . Unused Backups 14 | . 2 . 12 Power 3 | . . . 3 Propulsion 11 | . 2 . 9 Utility . | . . . . Weapon . | . . . . Tool/Special . | . . . . Average Slot Usage (%) 72 | . 93 68 40 Engine 10 | . 14 9 5 Treads 2 | . . 4 . Wheel 13 | . 22 8 13 Device 4 | . . 7 . Storage 11 | . 14 11 9 Protection 7 | . 12 5 . Ballistic Gun 22 | . 28 21 11 Peak Build Rating 15 | 6 7 12 15 Average Rating 7 | 4 6 8 8 On Entrance 6 | . 6 6 12 Avg Prop Armor Cover (%) . | . . . . Naked Turns . | . . . . Heaviest Build 54 | 12 15 54 53 Greatest Support 40 | 26 26 40 30 Greatest Overweight (x) 17 | . . 17 13 Average Overweight (x) . | . . 1 2 Largest Inventory Capacity 20 | 8 8 20 20 Average Capacity 12 | 7 8 14 20 Most Carried 13 | 1 8 13 13 Average Carried 8 | . 6 9 12 Final Capacity 20 | 8 8 20 20 Final Carried 13 | 1 8 12 13 Class Distribution -------------------- 79% | Mutant 20% | Scavenger-Mutant Dominant Class ---------------- Mutant | -10/Materials Mutant | -9/Materials Mutant | -8/Materials Resources | -11 -10 -9 -8 ----------- Run | Yrd Mat Mat Mat Matter Collected 784 | 254 89 370 71 Remotely . | . . . . Salvage Created 1326 | . 311 687 328 Parts 91 | . 20 50 21 Haulers Intercepted 2 | . 1 1 . Recyclers Shooed 1 | . 1 . . Parts Field Recycled . | . . . . Retrieved Matter . | . . . . Parts Self-Destructed . | . . . . Prevented . | . . . . Parts Restored . | . . . . Kills | -11 -10 -9 -8 ------- Run | Yrd Mat Mat Mat Combat Hostiles Destroyed 32 | . 9 15 8 Guns 32 | . 9 15 8 Classes Destroyed 9 | . 4 4 1 Worker 3 | . . 3 . Builder 1 | . . . 1 Hauler 2 | . 1 1 . Recycler 1 | . 1 . . Watcher 2 | . 1 1 . Swarmer 15 | . 9 3 3 Grunt 13 | . . 9 4 Brawler 1 | . . 1 . Sentry 3 | . . 2 1 Best Kill Streak 9 | . 5 6 9 Combat Bots Only 8 | . 5 5 8 Max Kills in Single Turn 2 | . 2 2 2 Gunslinging 1 | . 1 1 1 Exploded . | . . . . Melee . | . . . . Uniques/NPCs Destroyed . | . . . . Combat | -11 -10 -9 -8 -------- Run | Yrd Mat Mat Mat Hostile Shots Fired 288 | . 57 123 108 Missed 68 | . 16 32 20 Hits 220 | . 41 91 88 Melee 1 | . . 1 . Projectile 219 | . 41 90 88 Critical Strikes 5 | . 2 . 3 Damage Taken 2310 | . 317 861 1132 Core 806 | . 59 192 555 Absorbed by Shields 265 | . . 265 . Core Remaining (%) 76 | 100 76 52 . Volleys Fired 147 | . 35 77 35 Largest 2 | . 2 2 2 Hottest 46 | . 40 43 46 Shots Fired 261 | . 70 147 44 Gun 261 | . 70 147 44 Cannon . | . . . . Launcher . | . . . . Special . | . . . . Kinetic 261 | . 70 147 44 Thermal . | . . . . Explosive . | . . . . Electromagnetic . | . . . . Robot Hit Streak 18 | . 7 18 12 Robot Miss Streak 4 | . 2 4 3 Penetration Max . | . . . . Secondary Targets 5 | . 2 2 1 Max Gunslinging Chain 1 | . 1 1 1 Shots Hit Robots 178 | . 40 104 34 Core Hits 70 | . 20 35 15 Critical Kills 2 | . . 1 1 Critical Parts Destroyed . | . . . . Critical Strikes 2 | . . 1 1 Destroy 2 | . . 1 1 Melee Attacks . | . . . . Impact . | . . . . Slashing . | . . . . Piercing . | . . . . Sneak Attacks . | . . . . Combat Hostiles . | . . . . Follow-up Attacks . | . . . . Damage Inflicted 2127 | . 330 1240 557 Guns 2093 | . 330 1220 543 Cannons . | . . . . Explosions . | . . . . Melee . | . . . . Ramming 34 | . . 20 14 Kinetic 2093 | . 330 1220 543 Thermal . | . . . . Explosive . | . . . . Electromagnetic . | . . . . Impact . | . . . . Slashing . | . . . . Piercing . | . . . . Highest Corruption . | . . . . Average Corruption . | . . . . Corruption Purged . | . . . . Corruption Blocked . | . . . . Overload Shots . | . . . . Overflow Damage . | . . . . Projectiles . | . . . . Explosions . | . . . . Melee . | . . . . Knockbacks 1 | . . 1 . Impact 1 | . . 1 . Kinetic . | . . . . Secondary . | . . . . Self-Inflicted Damage 16 | . . 10 6 Shots . | . . . . Rammed 4 | . . 2 2 Targets Rammed 4 | . . 2 2 Kicked . | . . . . Crushed . | . . . . Highest Temperature 17 | . 12 15 17 Average Temperature 5 | . 6 4 8 Received Heat Transfer 831 | . . 318 513 Siege Activations . | . . . . Martial Activations . | . . . . Shielding Activations . | . . . . Robots Disrupted . | . . . . Combat Hostiles . | . . . . Robots Corrupted . | . . . . Combat Hostiles . | . . . . Parts Fried . | . . . . Impact Corruptions . | . . . . Robots Melted . | . . . . Combat Hostiles . | . . . . Parts Melted . | . . . . Heat Transferred . | . . . . Parts Sabotaged . | . . . . Parts Stolen . | . . . . Parts Stripped . | . . . . Power Chain Reactions . | . . . . Alert | -11 -10 -9 -8 ------- Run | Yrd Mat Mat Mat Maximum Alert Level . | . . . . Low Security (%) 100 | 100 100 100 100 Level 1 . | . . . . Level 2 . | . . . . Level 3 . | . . . . Level 4 . | . . . . Level 5 . | . . . . High Security . | . . . . Max Security . | . . . . Peak Influence 194 | . 142 194 177 Initial 62 | . . 37 62 Average 82 | . 63 93 109 Influence Increases 913 | . 244 464 205 Destroy 0b10 Robot/C 640 | . 180 300 160 Destroy 0b10 Robot/NC 45 | . 15 25 5 Destroy Leader 138 | . 34 64 40 Lose Combat Pursuer 90 | . 15 75 . Influence Decreases 796 | . 155 405 236 Entered New Map 138 | . . 52 86 Time Decay 518 | . 155 283 80 Lost Part 140 | . . 70 70 Squads Dispatched 7 | . . 3 4 Investigation 1 | . . 1 . Extermination . | . . . . Reinforcement 4 | . . 2 2 Assault . | . . . . Garrison 2 | . . . 2 Intercept . | . . . . Searches Triggered . | . . . . Construction Impeded 1 | . . 1 . Haulers Reinforced . | . . . . Active Scanning Responses . | . . . . Cargo Convoy Interrupts . | . . . . Stealth | -11 -10 -9 -8 --------- Run | Yrd Mat Mat Mat Distress Signals 3 | . 1 2 . Communications Jammed . | . . . . Distress Signals . | . . . . Times Spotted 56 | . 16 21 19 Peak Tracking Total 9 | . 9 8 9 Tactical Retreats 4 | . 1 3 . Traps | -11 -10 -9 -8 ------- Run | Yrd Mat Mat Mat Traps Triggered 1 | . . 1 . Indirectly . | . . . . Trap Hack Attempts . | . . . . Triggered . | . . . . Disarmed . | . . . . Reprogrammed . | . . . . Reused . | . . . . Traps Extracted . | . . . . Installed . | . . . . Triggered . | . . . . Machines | -11 -10 -9 -8 ---------- Run | Yrd Mat Mat Mat Machines Disabled . | . . . . Max in Single Turn . | . . . . Machines Repaired . | . . . . Machines Dismantled . | . . . . Machines Sabotaged . | . . . . Overloaded Fab Kills . | . . . . Hacking | -11 -10 -9 -8 --------- Run | Yrd Mat Mat Mat Machines Accessed . | . . . . Terminals . | . . . . Fabricators . | . . . . Repair Stations . | . . . . Recycling Units . | . . . . Scanalyzers . | . . . . Garrison Access . | . . . . Total Hacks . | . . . . Successful . | . . . . Failed . | . . . . Catastrophic . | . . . . Database Lockouts . | . . . . Manual . | . . . . Terminals . | . . . . Fabricators . | . . . . Repair Stations . | . . . . Recycling Units . | . . . . Scanalyzers . | . . . . Garrison Access . | . . . . Terminal Hacks . | . . . . Fabricator Hacks . | . . . . Repair Station Hacks . | . . . . Recycling Unit Hacks . | . . . . Scanalyzer . | . . . . Garrison Access Hacks . | . . . . Unauthorized Hacks . | . . . . Terminals . | . . . . Fabricators . | . . . . Repair Stations . | . . . . Recycling Units . | . . . . Scanalyzers . | . . . . Garrison Access . | . . . . Data Cores Recovered . | . . . . Used . | . . . . Hacking Detections . | . . . . Full Trace Events . | . . . . Feedback Events . | . . . . Feedback Blocked . | . . . . Robot Schematics Acquired . | . . . . Robots Built . | . . . . Authchips . | . . . . Time . | . . . . Total Robot Build Rating . | . . . . Part Schematics Acquired . | . . . . Parts Built . | . . . . Authchips . | . . . . Time . | . . . . Total Part Build Rating . | . . . . Part Studies Acquired . | . . . . Parts Repaired . | . . . . Time . | . . . . Parts Recycled . | . . . . Recycled Matter . | . . . . Retrieved Matter . | . . . . Retrieved Components . | . . . . Parts Scanalyzed . | . . . . Part Schematics Acquired . | . . . . Parts Damaged . | . . . . Bothacking | -11 -10 -9 -8 ------------ Run | Yrd Mat Mat Mat Used RIF Installer . | . . . . Robots Hacked . | . . . . Non-combat . | . . . . Combat . | . . . . Robot Hacks Applied . | . . . . Relay Couplers Released . | . . . . Fabnet Peak Effective % . | . . . . Robots Rewired . | . . . . Allies Hacked . | . . . . Hacks Repelled . | . . . . Allies | -11 -10 -9 -8 -------- Run | Yrd Mat Mat Mat Total Allies . | . . . . Largest Group . | . . . . Highest-Rated Group . | . . . . Highest-Rated Ally . | . . . . Total Orders . | . . . . Ally Attacks . | . . . . Total Damage . | . . . . Kills . | . . . . Allies Corrupted . | . . . . Allies Melted . | . . . . Intel | -11 -10 -9 -8 ------- Run | Yrd Mat Mat Mat Active Infowar (turns) . | . . . . Robot Analysis Total . | . . . . Derelict Logs Recovered . | . . . . Drone Launches . | . . . . Drone Recoveries . | . . . . Exploration | -11 -10 -9 -8 ------------- Run | Yrd Mat Mat Mat Turns Passed 1225 | 53 369 636 167 Spaces Moved 615 | 49 275 237 54 Core 9 | 1 . 4 4 Treads 50 | . . 50 . Legs . | . . . . Wheels 556 | 48 275 183 50 Hover . | . . . . Flight . | . . . . Fastest Speed 50 | 50 90 95 95 Average Speed 121 | 88 93 156 141 Slowest Speed 900 | 90 100 900 700 Overloaded Moves . | . . . . Propulsion Burnouts . | . . . . Robots Hopped . | . . . . Potential Cave-ins . | . . . . Cave-ins Triggered . | . . . . Exploration Rate (%) 20 | 3 49 21 8 Regions Visited 3 Branch Regions . Pre-discovered Areas . | . . . . Known Exits Taken . | . . . . Unknown Exits Taken 3 | 1 1 1 . Scrap Searched . | . . . . Spaces Dug . | . . . . Terrain Destroyed . | . . . . Melee . | . . . . Projectile . | . . . . AOE . | . . . . Terrain Rammed . | . . . . Walls Destroyed . | . . . . Machines Disabled . | . . . . Actions | -11 -10 -9 -8 --------- Run | Yrd Mat Mat Mat Total 861 | 55 334 373 99 Wait 37 | . 3 30 4 Move 612 | 48 274 236 54 Hop . | . . . . Pick Up 18 | 1 12 5 . Fast Attach 21 | 6 1 11 3 Attach . | . . . . Detach 4 | . . 3 1 Swap 5 | . 2 3 . Drop 13 | . 7 6 . Fire 147 | . 35 77 35 Melee . | . . . . Ram 4 | . . 2 2 Kick . | . . . . Crush . | . . . . Escape Stasis . | . . . . Rewire . | . . . . Trap . | . . . . Miscellaneous . | . . . . Route ------- -11/Scrapyard -10/Materials (discovered 2 exits: [*Mat] / [*Min]) -9/Materials -8/Materials History --------- Turn | Location | Event 8 | -11/Scrapyard | Discovered new exit (range 16) 54 | -11/Scrapyard | Entered Materials 216 | -10/Materials | Discovered new exit (range 6) 330 | -10/Materials | Build established: Mutant 413 | -10/Materials | Discovered new exit (range 11) 423 | -10/Materials | Entered another Materials area 423 | -9/Materials | Evolved 2 slots: Propulsion x1, Utility x1 929 | -9/Materials | Lost 3 parts (1u2w) 1055 | -9/Materials | Discovered new exit (range 7) 1059 | -9/Materials | Entered another Materials area 1059 | -8/Materials | Evolved 2 slots: Power x1, Propulsion x1 1122 | -8/Materials | Garrison activated, responded to threat 1183 | -8/Materials | Destroyed 8 combat bots 1207 | -8/Materials | Core integrity fell below 50% 1215 | -8/Materials | Lost 6 parts (1p3n2w) 1216 | -8/Materials | Core integrity fell below 20% 1226 | -8/Materials | Destroyed by S-10 Pest with Light Assault Rifle Last Messages --------------- 01139_ Hvy. Assault Rifle destroyed. 01139_ Critical hit (Burn: +37). 01145_ Wheel destroyed. 01152_ G-47 Trooper destroyed. 01156_ S-10 Pest destroyed. 01159_ Wheel destroyed. 01162_ S-10 Pest destroyed. 01168_ Imp. Ion Engine destroyed. 01180_ Critical hit (Burn: +37). 01180_ Destroyed Lgt. Nuclear Core. 01184_ Imp. Assault Rifle destroyed. 01191_ Acquired 71 matter. 01209_ S-10 Pest destroyed. 01212_ Acquired Wheel. 01215_ Slammed into G-47 Trooper. 01216_ K-01 Serf collects debris. 01219_ Acquired Hvy. Assault Rifle. 01220_ G-47 Trooper destroyed. 01222_ S-10 Pest emerges from the garrison. 01224_ Wheel destroyed. Map ----- +----------------------------------------------------+ | ?# #??# #???????????????????????????????? | | ?# """ #??# #???????????????????????????????? | | ?# """ #??# #???????????????????????????????? | | ?? """ #??# #???????????????????????????????? | | ???? ????# #???????????????????????????????? | | ???###+###???# #???????????????????????????????? | | ???# ##### #???????????????????????????????? | | ???# #???????????????????????????????? | | ???# " ##############??????????????????? | | ???# + ! #??????????????????? | | ???# ##### #### ! [#??????????????????? | | ???## ##???# #??# #???????#??????????? | | ????# #????##+##??# ] +?????? #??????????? | | ????# #???????????# #?????? #??????????? | | ????# #???????????# #????? #??????????? | | ????# #???????????# #???? #??????????? | | ????# #???????????# #??? ???????????? | | ????# #???????????#######/###??? ???????????? | | ????#####?????????????????# #???? ????????????? | | ??????????????????????????# #??? """ ????????????? | | ??????????????????????????# #?? """ #??????????? | | ?????????????????????????##g###* """ ### #?????? | | ?????????????????#########!*=%!| #?????? | | ?????????? + ![!s* %* #?????? | | ?????????????????#########s###########+#?????????? | | ?????????????????????# =@%*[= #???????????????? | | ?????????????????????# !%[%=""" #???????????????? | | ?????????????????????# ![ssG" #???????????????? | | ?????????????????????# """ #???????????????? | | ?????????????????????# !! #???????????????? | | ????????????????????? !! ! #???????????????? | | ????????????????????## ! ! #???????????????? | | ?????????????????????#############???????????????? | | | | | | | | | | | | | | | | | | | | | | | | | | | | | | | | | | | +----------------------------------------------------+ Best States ------------- Heat Dissipation 31 Energy Generation 12 Energy Capacity 265 Matter Stores 300 Matter Capacity 300 Sight Range 16 Terrain Scan Density 10 Armor Coverage 150 Evasion (%) 42 Recoil Reduction 2 Item Schematics ----------------- None Robot Schematics ------------------ None Fabricated ------------ Nothing Repaired ---------- Nothing Studied --------- None Alien Tech Used ----------------- None Achievements -------------- None Challenges ------------ None Game ------ Seed ReflexGrapheneSpecial Manual? 0 Play Time 00:08:30 Cumulative 51.2 hours Start 2025.12.18 @ 03:50:31 End 2025.12.18 @ 03:57:45 Sessions 1 Manual Loads 0 Difficulty Rogue Special Mode None Game No. 193 Rogue 193 Adventurer 0 Explorer 0 Win Type - Total 0 Types 0/0/0/0/0/0/0/0/0/0 Lore% 12 Gallery% 37 Achievement% 25 Wizard Run 0 Options --------- Layout 1 ASCII 0 Keyboard 1 Movement Vi Keybinds 0 Fullscreen 1 Font 16/SmallcapsGlow Map View 55x38 Zoom Use 0% Tactical HUD 1 Map Filters NONE Filters NONE Steam X RUN: 7c3f3ff9-94f0-4bd9-a9dd-2d6712fab059